bitfinex-derivatives/quotes_ETHF0:USTF0_20260203
["timestamp","ask_amount","ask_price","bid_price","bid_amount"]
[1770130210143,2.48279094,2286.7,2284.8,2.43844582]
[1770130210344,2.48279094,2286.7,2285.2,2.43844582]
[1770130210646,4.374,2286.8,2285.2,2.43844582]
[1770130210846,4.37930175,2286.8,2285.4,2.43844582]
[1770130211251,6.86209269,2286.8,2285.4,2.43844582]
[1770130211450,2.48279094,2286.7,2285.4,2.43844582]
[1770130211849,2.48279094,2286.7,2285.2,0.00324109]
[1770130212150,2.48279094,2286.7,2285.2,2.44168691]
[1770130212550,2.48279094,2286.4,2285.2,0.00324109]
[1770130212746,2.70170094,2286.2,2284.8,4.374]
[1770130212952,2.48279094,2286.2,2283.9,2.43844582]
[1770130213150,2.48279094,2285.8,2283.9,2.43844582]
[1770130213353,2.48279094,2285.6,2283.9,2.43844582]
[1770130213754,2.48279094,2285.6,2283.9,2.4441199]
[1770130213950,2.48279094,2285.6,2283.9,0.00567408]
[1770130214357,2.48279094,2285.6,2283.9,2.6632499]
[1770130214559,2.48279094,2285.6,2284.1,2.43844582]
[1770130215358,2.48279094,2285.6,2284.1,2.65755582]
[1770130216562,6.85779094,2285.7,2284.3,2.43844582]
[1770130217062,6.85779094,2285.7,2284.2,0.2191]
[1770130217063,2.48279094,2285.6,2284.2,0.2191]
[1770130217764,2.48279094,2286.0,2284.4,2.65751582]
[1770130218061,2.48279094,2286.0,2284.6,2.43844582]
[1770130218658,2.48279094,2286.0,2284.5,0.21907]
[1770130218863,2.48279094,2286.0,2284.2,2.43844582]
[1770130219560,2.48279094,2286.3,2284.6,2.65750582]
[1770130219761,2.48279094,2286.3,2284.8,2.43844582]
[1770130219965,2.48279094,2286.3,2285.1,2.43844582]
[1770130220865,2.48279094,2286.3,2285.0,0.21902]
[1770130221271,2.406285,2286.3,2285.2,2.72000822]
[1770130221567,2.406285,2286.3,2284.8,2.50100822]
[1770130221864,2.406285,2286.3,2284.8,2.72004822]
[1770130222267,2.406285,2286.1,2284.4,2.50100822]
[1770130222666,2.406285,2286.1,2284.8,2.72004822]
[1770130222967,2.406285,2286.1,2284.9,0.21902]
[1770130223764,2.406285,2286.1,2284.9,2.50100822]
[1770130224170,2.406285,2286.1,2284.6,2.50100822]
[1770130224368,2.406285,2286.1,2284.4,0.21908]
[1770130224868,2.406285,2285.8,2284.2,2.50100822]
[1770130226263,2.406285,2285.8,2284.1,0.2191]
[1770130226469,2.406285,2285.6,2284.1,0.2191]
[1770130226866,2.406285,2285.5,2284.0,4.377]
[1770130227066,2.406285,2285.5,2283.6,0.22196456]
[1770130227067,2.625325,2284.8,2283.6,0.22196456]
[1770130227263,2.406285,2284.6,2283.6,0.22196456]
[1770130227668,2.406285,2285.0,2283.6,2.94212278]
[1770130228166,2.41050748,2285.0,2283.6,2.9461188]
[1770130228671,2.41050748,2285.0,2283.8,2.50100822]
[1770130228968,0.00422248,2285.0,2284.1,2.72010822]
[1770130229769,2.41050748,2285.0,2283.7,2.50100822]
[1770130230569,0.00422248,2285.0,2283.7,2.72014822]
[1770130230773,2.41050748,2285.0,2283.7,2.72014822]
[1770130231171,2.41050748,2285.0,2283.7,2.50100822]
[1770130231973,2.406285,2284.6,2283.6,0.22596058]
[1770130232173,2.625355,2284.6,2283.6,0.22596058]
[1770130232372,2.406285,2284.4,2283.6,0.22596058]
[1770130232676,2.625365,2284.4,2282.5,2.50100822]
[1770130232976,2.406285,2284.2,2282.5,2.50100822]
[1770130233173,2.406285,2283.8,2282.1,2.50100822]
[1770130233378,2.625425,2283.8,2282.1,2.50100822]
[1770130233575,2.406285,2283.6,2282.1,0.00535168]
[1770130233777,2.406285,2283.4,2282.1,0.00535168]
[1770130233977,2.406285,2283.4,2282.2,2.72029822]
[1770130233978,0.0051208,2283.4,2282.2,2.72029822]
[1770130234179,0.0051208,2283.4,2282.3,2.72028822]
[1770130234378,2.4114058,2283.4,2282.3,2.72028822]
[1770130234877,2.4114058,2283.4,2282.3,2.50100822]
[1770130235071,0.0051208,2283.4,2282.3,2.50100822]
[1770130235272,2.4114058,2283.4,2282.3,2.50100822]
[1770130235470,2.4114058,2283.4,2282.1,0.00535168]
[1770130235674,2.406285,2283.3,2282.1,0.00535168]
[1770130235980,2.406285,2283.2,2282.1,0.00535168]
[1770130236175,2.406285,2283.0,2281.5,2.72035822]
[1770130236572,2.406285,2282.6,2280.7,2.72043822]
[1770130236777,2.406285,2282.4,2280.8,2.72042822]
[1770130237178,2.406285,2282.4,2280.8,2.50532454]
[1770130237478,2.406285,2282.8,2281.3,2.50100822]
[1770130237778,2.406285,2283.2,2281.6,2.50100822]
[1770130238170,2.625485,2283.2,2281.2,2.50100822]
[1770130238575,2.406285,2283.0,2281.2,2.50100822]
[1770130238776,2.625505,2283.0,2281.2,2.50100822]
[1770130238975,2.406285,2283.0,2281.3,2.72037822]
[1770130239281,2.406285,2283.0,2281.3,2.50100822]
[1770130239481,2.406285,2282.8,2280.9,6.88100822]
[1770130239679,0.21924,2282.7,2280.9,6.88100822]
[1770130239979,2.406285,2282.6,2280.9,6.88100822]
[1770130240380,2.406285,2282.6,2281.0,2.50100822]
[1770130240579,2.406285,2282.6,2280.9,4.38]
[1770130240776,2.406285,2282.6,2280.8,0.22373632]
[1770130241083,2.406285,2282.6,2280.8,2.72474454]
[1770130241377,2.406285,2282.2,2280.8,0.00431632]
[1770130241584,2.406285,2282.0,2280.0,2.50100822]
[1770130241783,11.213,2282.1,2280.0,2.50100822]
[1770130241784,2.406285,2281.8,2280.0,2.50100822]
[1770130241980,2.406285,2281.8,2279.9,0.2195]
[1770130241981,2.625615,2281.8,2279.9,0.2195]
[1770130242577,2.62937655,2281.8,2280.0,2.72050822]
[1770130242878,2.41004655,2281.8,2280.0,2.50100822]
[1770130243078,2.41004655,2281.8,2280.4,2.72046822]
[1770130243279,2.41004655,2281.8,2280.4,0.21946]
[1770130243681,2.41004655,2281.8,2280.1,2.50100822]
[1770130244084,2.406285,2281.6,2279.9,0.00334177]
[1770130244486,2.406285,2281.6,2279.9,2.50434999]
[1770130244782,2.406285,2281.6,2279.9,2.72384999]
[1770130245381,2.406285,2281.6,2279.9,2.50434999]
[1770130245783,2.406285,2281.6,2279.9,0.00334177]
[1770130246381,0.21941,2281.0,2279.9,0.00334177]
[1770130246583,2.406285,2280.8,2278.8,2.50100822]
[1770130246788,2.406285,2280.8,2278.8,2.72061822]
[1770130246990,2.406285,2280.6,2278.8,2.50100822]
[1770130247288,43.206285,2280.6,2278.8,2.50100822]
[1770130247488,2.406285,2280.5,2278.8,2.506476]
[1770130247789,2.406285,2280.3,2278.8,0.00546778]
[1770130248084,2.406285,2280.1,2277.6,2.50100822]
[1770130248284,2.406285,2279.8,2277.6,2.50100822]
[1770130248781,2.406285,2279.7,2278.2,2.50100822]
[1770130249177,2.41048049,2279.7,2278.2,0.00504065]
[1770130250185,0.00419549,2279.7,2278.2,2.50604887]
[1770130250385,2.49518711,2279.7,2278.2,2.72571887]
[1770130252390,0.00419549,2279.7,2278.4,2.71378053]
[1770130252888,0.00419549,2279.7,2278.5,0.21964]
[1770130253084,2.34542705,2279.7,2278.6,2.52640069]
[1770130253282,0.00419549,2279.7,2278.6,2.52640069]
[1770130253484,2.34542705,2279.7,2278.6,2.52640069]
[1770130253681,2.34542705,2279.7,2278.2,4.39204065]
[1770130253682,2.34542705,2279.7,2278.3,2.52640069]
[1770130253886,2.34542705,2279.7,2278.2,0.00504065]
[1770130255091,2.34123156,2279.5,2278.2,0.00504065]
[1770130255291,2.34123156,2279.3,2278.2,0.00504065]
[1770130256392,2.34123156,2279.2,2277.4,2.52640069]
[1770130256588,2.34123156,2279.2,2277.4,2.74615069]
[1770130256790,2.34123156,2279.2,2277.5,2.74614069]
[1770130256989,2.34123156,2279.2,2277.8,2.52640069]
[1770130257189,2.34123156,2279.2,2277.8,2.75159905]
[1770130257888,4.387,2279.3,2278.0,2.52640069]
[1770130258087,4.387,2279.3,2278.3,2.52640069]
[1770130258287,4.387,2279.3,2278.5,2.52640069]
[1770130258585,8.98323156,2280.2,2279.0,2.52640069]
[1770130258783,2.34123156,2280.1,2279.0,2.52640069]
[1770130259185,2.34123156,2280.1,2279.0,2.74600069]
[1770130259391,4.388,2280.3,2279.0,2.74600069]
[1770130259693,0.00340221,2280.3,2279.2,2.52640069]
[1770130260089,0.00340221,2280.3,2279.4,2.52640069]
[1770130260393,6.962,2281.4,2279.4,2.52640069]
[1770130260394,2.34123156,2281.1,2279.8,2.52640069]
[1770130260797,2.34123156,2280.9,2279.4,0.00315271]
[1770130260993,2.34123156,2280.7,2279.4,0.00315271]
[1770130261295,2.34123156,2280.7,2279.4,2.7491134]
[1770130261296,2.3468577,2280.7,2279.4,2.7491134]
[1770130261597,2.3468577,2280.7,2279.4,2.5295534]
[1770130261893,2.34123156,2280.2,2279.4,0.00315271]
[1770130262094,2.34123156,2279.9,2278.6,2.52640069]
[1770130262295,2.34542705,2279.8,2278.6,2.52640069]
[1770130262494,2.34123156,2279.8,2278.6,2.52640069]
[1770130262898,2.34542705,2279.8,2278.6,2.52640069]
[1770130263097,0.1,2280.0,2278.6,2.74603069]
[1770130263298,0.1,2280.0,2278.9,2.52640069]
[1770130263499,2.44123156,2280.0,2278.6,0.00411674]
[1770130263795,2.34123156,2279.3,2278.6,0.00411674]
[1770130264095,2.34542705,2279.3,2278.6,0.00411674]
[1770130264301,2.34123156,2279.0,2277.8,0.2197]
[1770130264495,4.388,2279.3,2277.8,0.2197]
[1770130264496,6.72923156,2279.3,2277.8,2.74610069]
[1770130264692,2.34123156,2279.2,2277.8,2.74610069]
[1770130264896,2.34123156,2279.2,2278.0,2.52640069]
[1770130265202,2.34466235,2279.2,2278.0,2.53143267]
[1770130265498,2.34885784,2279.2,2278.0,2.53143267]
[1770130265891,2.34466235,2279.2,2278.0,2.53143267]
[1770130266501,0.00343079,2279.2,2278.0,2.53143267]
[1770130266698,0.00343079,2279.2,2278.2,2.52640069]
[1770130267098,2.34466235,2279.2,2278.0,2.53143267]
[1770130267592,2.34542705,2279.0,2278.0,0.00503198]
[1770130267997,0.00343079,2279.2,2278.0,0.00503198]
[1770130267998,2.34542705,2278.9,2278.0,0.00503198]
[1770130268196,2.34123156,2278.9,2278.0,0.00503198]
[1770130268394,2.34542705,2278.2,2277.0,2.52640069]
[1770130268605,2.34123156,2278.2,2276.6,2.74622069]
[1770130268796,2.34123156,2278.0,2276.6,2.74622069]
[1770130268997,2.34123156,2278.3,2277.0,2.52640069]
[1770130269202,2.34123156,2278.3,2276.7,2.52640069]
[1770130269502,2.34123156,2278.1,2277.0,0.0044506]
[1770130269698,2.34542705,2277.5,2276.5,0.21983]
[1770130269896,2.34123156,2277.5,2276.3,2.52640069]
[1770130270508,2.34123156,2277.5,2275.9,4.389]
[1770130270509,2.34123156,2278.1,2276.7,2.52640069]
[1770130270698,2.34634649,2278.1,2276.7,2.75164885]
[1770130270898,0.00511493,2278.1,2277.0,2.74619069]
[1770130271103,2.34123156,2277.9,2276.7,0.00542816]
[1770130271305,2.34542705,2277.6,2276.7,0.00542816]
[1770130271504,2.34123156,2277.4,2276.7,0.00542816]
[1770130271906,2.34542705,2277.2,2276.7,0.00542816]
[1770130272104,2.34123156,2277.2,2276.7,0.00542816]
[1770130272405,41.0197,2278.0,2276.7,0.00542816]
[1770130272406,2.34123156,2277.8,2276.7,2.53182885]
[1770130272704,0.00419549,2278.0,2276.7,2.75164885]
[1770130272905,2.34634649,2278.1,2276.7,2.75164885]
[1770130273109,2.34123156,2277.9,2276.7,0.00542816]
[1770130273803,2.34123156,2277.6,2276.7,0.00542816]
[1770130274199,2.34542705,2277.5,2276.7,0.00542816]
[1770130274400,2.34123156,2277.1,2276.0,0.21989]
[1770130274805,2.34542705,2277.1,2276.0,0.21989]
[1770130275001,4.439,2277.4,2275.6,2.52640069]
[1770130275002,2.34123156,2277.4,2275.6,2.52640069]
[1770130275404,2.34123156,2277.4,2275.8,2.52640069]
[1770130275705,2.34123156,2277.4,2276.3,0.21986]
[1770130275902,2.34542705,2277.4,2275.7,2.74631069]
[1770130276103,2.34123156,2277.2,2275.7,2.52640069]
[1770130276306,2.34123156,2277.2,2275.7,2.72891407]
[1770130276808,2.34123156,2277.2,2276.1,0.21988]
[1770130277209,2.34123156,2277.2,2275.8,2.74630069]
[1770130277507,2.34123156,2277.2,2276.0,2.74629069]
[1770130277704,2.34123156,2277.6,2276.4,2.52640069]
[1770130277909,2.34123156,2277.6,2276.3,2.74625069]
[1770130278306,2.34123156,2278.0,2276.7,2.74622069]
[1770130278709,0.00419549,2277.8,2276.7,2.74622069]
[1770130279308,2.34542705,2277.7,2276.7,0.21982]
[1770130279510,0.00419549,2277.9,2276.8,2.74620069]
[1770130279711,2.34634649,2278.1,2277.1,2.74618069]
[1770130279907,0.00511493,2278.1,2277.1,2.74618069]
[1770130280210,0.00419549,2278.0,2277.1,2.64618069]
[1770130280508,2.34634649,2278.1,2277.1,2.64618069]
[1770130280707,2.53663217,2277.9,2276.6,0.21983]
[1770130280915,2.75213668,2277.9,2276.3,2.5041913]
[1770130281208,2.75634217,2277.9,2276.1,2.5041913]
[1770130281412,2.53243668,2277.6,2276.1,2.5041913]
[1770130281603,2.53243668,2277.6,2275.8,0.03857821]
[1770130281604,2.53243668,2277.6,2276.3,2.7240413]
[1770130282112,2.53663217,2277.5,2276.3,2.7240413]
[1770130282308,2.53243668,2277.5,2276.3,2.7240413]
[1770130282507,0.00419549,2277.4,2276.3,2.7240413]
[1770130282809,0.00419549,2277.4,2276.0,2.5041913]
[1770130282810,2.53243668,2277.4,2276.0,2.5041913]
[1770130283110,2.53243668,2277.4,2276.3,2.7240413]
[1770130283311,2.53243668,2277.4,2276.3,0.21985]
[1770130283514,2.53663217,2277.2,2276.3,0.21985]
[1770130283808,2.53243668,2277.6,2276.5,0.21984]
[1770130284213,0.00419549,2277.4,2276.5,0.21984]
[1770130284513,2.53755161,2278.1,2276.8,0.21981]
[1770130284713,2.53755161,2278.1,2275.5,6.48692327]
[1770130284714,2.53755161,2278.1,2276.4,2.5041913]
[1770130285012,2.53243668,2277.6,2276.4,2.54276782]
[1770130285214,2.53243668,2278.0,2276.4,2.5041913]
[1770130285411,2.53243668,2278.0,2276.9,2.7239813]
[1770130285711,2.53243668,2278.0,2276.9,0.21979]
[1770130286011,2.53663217,2277.0,2275.9,2.7240913]
[1770130286214,2.53243668,2277.0,2276.1,0.21987]
[1770130286514,2.53243668,2277.4,2276.1,2.7240613]
[1770130286712,2.53243668,2277.2,2276.1,0.21987]
[1770130286912,2.53663217,2277.2,2275.8,2.5041913]
[1770130287114,2.53663217,2276.9,2275.8,2.5041913]
[1770130287310,38.14162192,2278.0,2276.1,0.21987]
[1770130287311,2.53663217,2277.3,2276.1,0.21987]
[1770130287518,2.53243668,2277.3,2276.1,2.7240613]
[1770130287713,41.0197,2277.9,2276.2,2.7240513]
[1770130287912,2.53243668,2277.6,2276.5,2.7240213]
[1770130288509,0.00419549,2277.5,2276.5,2.7240213]
[1770130288915,0.00419549,2277.4,2276.5,2.7240213]
[1770130289117,2.53663217,2277.6,2276.5,2.7240213]
[1770130289320,2.53663217,2277.6,2276.7,0.21981]
[1770130289612,2.53243668,2279.3,2277.8,0.21971]
[1770130289813,2.53243668,2278.6,2276.9,0.2198]
[1770130290017,3.72779552,2279.2,2277.0,2.7239813]
[1770130290018,2.53243668,2278.3,2277.0,2.7239813]
[1770130290218,2.53243668,2278.3,2276.6,2.7240213]
[1770130290418,2.53243668,2278.1,2276.6,2.7240213]
[1770130290619,2.53243668,2277.8,2276.6,2.7240213]
[1770130290817,2.53595239,2277.8,2276.6,0.0048988]
[1770130291018,2.53595239,2277.8,2276.6,2.5090901]
[1770130291214,2.53595239,2277.8,2276.7,2.57167501]
[1770130291414,0.00420042,2277.5,2276.7,0.06748371]
[1770130291719,0.00420042,2277.5,2276.6,0.0048988]
[1770130291918,2.53595239,2277.8,2276.6,0.0048988]
[1770130291919,0.00420042,2277.4,2276.6,0.0048988]
[1770130292117,0.00351571,2277.8,2276.9,2.5041913]
[1770130292319,0.00351571,2277.8,2276.8,0.21981]
[1770130292320,2.53595239,2277.8,2276.7,0.09641165]
[1770130292519,0.00420042,2277.7,2276.6,2.5090901]
[1770130292715,0.00351571,2277.8,2277.0,2.7239813]
[1770130292917,2.53243668,2278.3,2277.0,2.7239813]
[1770130293122,2.53243668,2278.3,2277.1,2.7239713]
[1770130293322,2.53243668,2279.0,2277.7,2.5041913]
[1770130293822,2.5366371,2278.8,2277.7,2.5041913]
[1770130294218,0.00420042,2278.7,2277.8,0.21971]
[1770130294523,4e-07,2279.0,2278.1,2.5041913]
[1770130294718,2.53243668,2280.1,2278.7,2.5041913]
[1770130295621,2.53243668,2279.9,2278.7,0.00564214]
[1770130295921,2.53243668,2279.7,2278.7,0.00564214]
[1770130296217,2.53243668,2279.5,2277.9,2.5041913]
[1770130296416,2.53243668,2279.3,2277.5,2.7239313]
[1770130296620,2.53243668,2279.3,2277.0,5.14846708]
[1770130296621,2.53243668,2279.1,2277.2,2.5041913]
[1770130296821,2.53243668,2279.1,2277.4,2.5041913]
[1770130297123,2.53243668,2278.8,2277.1,4.392]
[1770130297323,2.53243668,2278.6,2277.1,4.39742184]
[1770130298223,2.53243668,2278.6,2277.2,2.7239613]
[1770130298925,2.53243668,2278.8,2277.2,2.5041913]
[1770130299227,2.53243668,2278.8,2277.5,2.5041913]
[1770130299424,4.392,2279.1,2278.0,2.5041913]
[1770130299818,2.53243668,2279.0,2277.9,0.2197]
[1770130300222,2.53243668,2279.4,2278.1,2.7238713]
[1770130300420,2.48317815,2279.4,2278.2,2.7238613]
[1770130300627,2.48317815,2279.4,2277.3,2.5041913]
[1770130300823,2.48317815,2279.4,2277.5,2.5041913]
[1770130301020,2.48317815,2279.4,2278.1,2.7238713]
[1770130301226,4.392,2280.0,2278.3,2.5041913]
[1770130301524,4.392,2280.0,2278.6,2.5041913]
[1770130302325,4.392,2280.0,2278.2,2.5041913]
[1770130302326,2.53243668,2279.9,2278.2,2.5041913]
[1770130302931,2.75195668,2279.9,2278.1,0.21968]
[1770130303127,2.75195668,2279.9,2278.1,2.7238713]
[1770130303423,0.21957,2279.3,2277.4,2.5041913]
[1770130303629,2.53243668,2279.1,2277.4,2.5041913]
[1770130304023,2.53243668,2279.1,2277.4,2.7239413]
[1770130304231,2.53243668,2279.1,2277.8,2.5041913]
[1770130304428,2.53243668,2279.1,2277.8,2.7239013]
[1770130304730,2.53243668,2279.5,2278.3,0.21967]
[1770130305429,2.53243668,2279.5,2278.4,0.21965]
[1770130305630,2.53243668,2279.5,2278.5,0.21964]
[1770130305831,2.53243668,2280.0,2278.5,0.21964]
[1770130306830,2.53243668,2280.0,2278.6,2.5041913]
[1770130307034,2.53243668,2280.0,2278.8,0.21961]
[1770130307229,2.53243668,2280.0,2278.8,0.00314238]
[1770130307831,2.75200668,2279.4,2277.6,2.5041913]
[1770130308132,2.53243668,2279.2,2277.6,2.5041913]
[1770130308334,2.53243668,2279.0,2277.3,2.7239513]
[1770130308731,2.53243668,2279.0,2277.3,2.72825885]
[1770130309233,2.53243668,2279.0,2277.3,0.00430755]
[1770130309434,2.53243668,2278.7,2277.3,0.00430755]
[1770130310934,2.75206668,2278.7,2277.3,0.00430755]
[1770130311236,2.46462427,2278.5,2277.3,0.00018031]
[1770130311435,10.57167647,2278.4,2277.3,0.00018031]
[1770130311633,2.46462427,2278.0,2276.4,4.391]
[1770130311839,2.68432427,2278.0,2276.4,4.391]
[1770130312037,2.46462427,2277.8,2276.0,2.31810161]
[1770130312432,2.46462427,2277.4,2275.5,2.31810161]
[1770130312637,2.46462427,2277.3,2275.5,2.32304793]
[1770130313238,2.46462427,2277.3,2275.8,2.72577994]
[1770130313740,2.46462427,2277.3,2275.8,2.50586994]
[1770130314440,2.46462427,2277.3,2275.9,0.19286565]
[1770130314634,2.46462427,2277.3,2276.0,2.50586994]
[1770130315230,0.00486198,2277.4,2275.5,0.00494632]
[1770130315231,2.47253266,2277.4,2276.3,2.50586994]
[1770130315439,2.47253266,2277.4,2276.1,2.6794414]
[1770130315638,2.47253266,2277.4,2276.1,2.50586994]
[1770130317036,0.00486198,2277.4,2276.1,2.50586994]
[1770130317237,0.00486198,2277.4,2276.3,0.21985]
[1770130317433,0.00486198,2277.4,2276.4,2.72571994]
[1770130317638,0.00486198,2277.4,2276.6,2.50586994]
[1770130318037,2.47253266,2277.4,2276.1,2.50586994]
[1770130318438,0.00486198,2277.4,2276.1,2.50586994]
[1770130319241,2.47253266,2277.4,2276.1,2.50586994]
[1770130319534,2.47253266,2277.4,2276.0,6.89786994]
[1770130319741,2.47253266,2277.4,2276.1,2.50586994]
[1770130320140,0.00486198,2277.4,2276.1,2.50586994]
[1770130320337,2.46767068,2278.3,2277.4,0.21975]
[1770130320535,4.393,2279.0,2276.8,2.50586994]
[1770130320536,2.46767068,2279.0,2277.8,2.72557994]
[1770130320735,2.46767068,2278.8,2276.9,2.50586994]
[1770130320933,2.46767068,2278.8,2277.0,2.72565994]
[1770130321139,2.46767068,2278.8,2277.2,2.50586994]
[1770130321341,2.47117419,2278.8,2277.2,2.51095372]
[1770130321541,2.47117419,2278.8,2277.2,2.73071372]
[1770130322242,2.68732068,2278.5,2277.2,0.00508378]
[1770130322440,2.46767068,2278.5,2277.2,0.22485378]
[1770130322639,2.46767068,2278.5,2277.2,2.73072372]
[1770130322938,2.46767068,2278.5,2277.2,0.00508378]
[1770130323141,2.68734068,2278.3,2276.4,5.30170994]
[1770130323440,2.46767068,2278.1,2276.1,2.56371185]
[1770130323645,2.46767068,2277.3,2276.1,0.05784191]
[1770130323845,2.46767068,2277.3,2275.5,2.72580994]
[1770130324042,2.46767068,2277.3,2275.5,2.73097794]
[1770130324245,2.46767068,2277.3,2275.8,0.2199]
[1770130324945,2.46767068,2277.3,2276.0,2.50586994]
[1770130325541,2.46767068,2277.3,2276.0,2.72574994]
[1770130325843,2.46767068,2277.7,2276.3,2.50586994]
[1770130326245,2.46767068,2277.7,2276.0,2.576]
[1770130326438,2.68741068,2277.5,2275.6,2.72578994]
[1770130326646,2.68744068,2277.3,2275.6,2.50586994]
[1770130326845,2.46767068,2277.1,2275.6,2.50586994]
[1770130327041,2.68748068,2276.9,2274.8,2.50586994]
[1770130327246,2.68748068,2276.9,2275.0,2.50586994]
[1770130327540,2.68748068,2276.9,2275.2,2.50586994]
[1770130327937,2.46767068,2276.5,2274.6,2.50586994]
[1770130328137,2.68752068,2276.5,2274.6,2.51122349]
[1770130328338,2.68752068,2276.5,2274.6,0.00535355]
[1770130328538,2.46767068,2276.3,2274.6,2.51122349]
[1770130328943,2.46767068,2276.7,2275.2,2.50586994]
[1770130329145,2.46767068,2276.7,2275.3,2.79695]
[1770130329447,0.00568104,2277.1,2275.6,2.50586994]
[1770130329642,2.47335172,2277.1,2275.9,2.50586994]
[1770130329839,2.47335172,2277.1,2275.4,2.50586994]
[1770130330342,4.394,2278.4,2277.3,2.50586994]
[1770130330544,2.46767068,2278.5,2277.3,2.50586994]
[1770130330741,2.46767068,2278.5,2276.9,2.50586994]
[1770130330941,2.68732068,2278.5,2276.0,0.21989]
[1770130331140,2.46767068,2278.1,2276.5,2.50586994]
[1770130331340,2.46767068,2278.0,2276.5,2.51011566]
[1770130331841,2.46767068,2278.0,2276.5,0.00424572]
[1770130332142,2.46767068,2277.7,2276.5,0.00424572]
[1770130332750,2.68739068,2277.7,2276.5,0.00424572]
[1770130333449,6.86526872,2278.1,2276.5,2.51011566]
[1770130333650,2.46767068,2278.0,2276.5,2.72994566]
[1770130333844,2.46767068,2278.0,2276.7,2.50586994]
[1770130334045,0.00359804,2278.1,2277.0,2.50586994]
[1770130334251,0.00359804,2278.1,2276.7,2.577]
[1770130334252,2.46767068,2278.8,2277.4,2.72561994]
[1770130334548,2.46767068,2278.9,2277.6,2.50586994]
[1770130334743,2.46767068,2278.9,2277.5,0.21974]
[1770130334949,2.46767068,2278.5,2276.7,2.50586994]
[1770130335152,2.68734068,2278.3,2276.5,9.48011566]
[1770130335351,2.69260793,2278.3,2276.6,2.50586994]
[1770130335549,2.47293793,2278.3,2276.6,2.53478899]
[1770130335745,2.47293793,2278.3,2276.6,2.50586994]
[1770130335949,2.46767068,2277.8,2276.5,0.00424572]
[1770130336250,2.68739068,2277.8,2276.5,0.00424572]
[1770130336550,2.68741068,2277.6,2276.5,0.00064768]
[1770130336846,2.68741068,2277.6,2275.4,0.21994]
[1770130336847,2.68746068,2277.0,2275.4,2.50586994]
[1770130337052,2.46767068,2277.0,2275.4,2.50586994]
[1770130337256,2.46767068,2276.7,2275.1,4.393]
[1770130337548,2.46767068,2276.5,2275.1,4.393]
[1770130337748,2.47172896,2276.5,2275.1,0.00506455]
[1770130337951,2.47172896,2276.5,2275.1,2.51093449]
[1770130338145,2.47172896,2276.5,2275.3,2.50586994]
[1770130338351,0.00405828,2276.5,2275.3,2.50586994]
[1770130338849,0.00405828,2276.5,2275.4,2.82418915]
[1770130339051,2.46767068,2277.3,2275.7,0.21991]
[1770130339245,6.86167068,2277.7,2275.8,2.72577994]
[1770130339444,2.46767068,2277.6,2276.2,2.50586994]
[1770130339651,4.394,2277.7,2276.5,2.72570994]
[1770130340048,2.46767068,2278.0,2276.5,2.72570994]
[1770130340351,2.46767068,2277.7,2276.2,2.50586994]
[1770130340654,0.21977,2277.2,2275.9,4.394]
[1770130340854,2.38775266,2277.1,2275.9,4.394]
[1770130341459,2.53790607,2277.4,2275.9,4.394]
[1770130341460,2.38775266,2277.4,2276.0,2.7491658]
[1770130341754,2.39180939,2278.0,2276.4,2.54665242]
[1770130342351,2.39180939,2278.0,2276.1,2.79687]
[1770130342352,2.39180939,2278.0,2276.3,2.577]
[1770130342551,2.39180939,2278.0,2276.3,2.54665242]
[1770130342751,2.39180939,2278.0,2275.9,2.54665242]
[1770130342752,2.38775266,2277.8,2275.9,2.54665242]
[1770130343051,2.60749266,2277.6,2275.9,2.54665242]
[1770130343253,2.38775266,2277.4,2275.9,2.54665242]
[1770130343449,4.394,2277.7,2276.4,2.54665242]
[1770130343653,4.394,2277.7,2276.4,2.76650242]
[1770130343852,2.53790607,2278.7,2277.5,2.54665242]
[1770130344055,4.394,2279.6,2277.6,5.14846708]
[1770130344248,2.38775266,2279.7,2278.4,2.54665242]
[1770130344553,2.38775266,2279.5,2277.9,2.54665242]
[1770130345052,2.39329842,2279.5,2277.9,0.00424088]
[1770130345256,2.61284842,2279.5,2277.9,0.00424088]
[1770130345453,2.38775266,2279.3,2277.9,0.00424088]
[1770130346355,0.00554576,2279.5,2277.9,2.5508933]
[1770130346549,2.39329842,2279.5,2277.9,2.5508933]
[1770130346748,2.39329842,2279.5,2277.9,0.00424088]
[1770130346956,2.39329842,2279.5,2277.9,2.5508933]
[1770130347351,0.00554576,2279.5,2278.1,2.54665242]
[1770130347753,0.00554576,2279.5,2278.3,2.76631242]
[1770130347961,2.39329842,2279.5,2277.9,2.5508933]
[1770130348259,0.00554576,2279.5,2278.2,2.54665242]
[1770130348455,0.00554576,2279.5,2278.4,2.54665242]
[1770130348656,0.00554576,2279.5,2278.4,9.51465242]
[1770130348961,0.00554576,2279.5,2278.5,2.54665242]
[1770130349154,0.00554576,2279.5,2278.3,0.21966]
[1770130349155,2.39329842,2279.5,2278.1,2.54665242]
[1770130349359,2.39329842,2279.5,2277.9,0.00424088]
[1770130350262,2.39329842,2279.5,2277.9,2.5508933]
[1770130350561,2.39329842,2279.5,2278.2,2.54665242]
[1770130351254,2.39329842,2279.5,2277.9,0.00424088]
[1770130351560,2.60734266,2279.1,2277.9,0.00424088]
[1770130351760,2.38775266,2278.9,2277.9,0.0001826]
[1770130354060,6.77975266,2279.3,2277.9,2.54683502]
[1770130354658,2.38775266,2279.2,2277.9,2.54683502]
[1770130355054,2.38775266,2279.0,2277.9,0.0001826]
[1770130355755,2.38775266,2278.8,2277.9,0.0001826]
[1770130357662,2.38775266,2279.2,2277.9,0.0001826]
[1770130358053,2.38775266,2278.9,2277.9,0.0001826]
[1770130358557,2.38775266,2278.7,2277.1,6.966]
[1770130358863,2.38775266,2278.5,2277.1,6.966]
[1770130359364,2.38775266,2278.5,2277.1,4.391]
[1770130359562,2.38775266,2278.1,2277.1,0.00557281]
[1770130359756,2.38775266,2278.5,2277.2,2.54665242]
[1770130359958,2.38775266,2278.5,2277.1,0.00557281]
[1770130360159,2.38775266,2278.5,2277.1,2.55222523]
[1770130360360,40.8,2279.0,2277.1,2.55222523]
[1770130360361,2.38775266,2278.9,2277.6,2.54665242]
[1770130360563,2.38775266,2279.2,2277.7,2.76637242]
[1770130361064,2.60733266,2279.2,2277.3,2.54665242]
[1770130361364,2.38775266,2279.0,2277.3,2.54665242]
[1770130361558,2.38775266,2279.0,2277.5,2.54665242]
[1770130361763,6.77875266,2279.3,2277.9,2.76635242]
[1770130361957,0.00554576,2279.5,2278.2,2.54665242]
[1770130362264,0.00554576,2279.5,2278.4,2.76630242]
[1770130362461,2.39329842,2279.5,2278.4,2.76630242]
[1770130362658,2.38775266,2280.2,2278.7,2.54665242]
[1770130362959,2.38775266,2280.2,2278.3,2.54665242]
[1770130363167,2.60724266,2280.2,2278.3,2.54665242]
[1770130363462,2.38775266,2280.0,2278.3,2.54665242]
[1770130363653,2.39276498,2280.0,2278.3,2.550894]